fUSD/lending_fUSD_20260218
["ID","MTS","AMOUNT","RATE_DAILY","PERIOD"]
[405873818,1771377048931,-1219.64567907,0.00015516,2]
[405873819,1771377048940,-481.75678796,0.00015645,2]
[405873820,1771377048950,-481.75678797,0.00015645,2]
[405873821,1771377048959,-1766.19,0.0001568,2]
[405873822,1771377048968,-4559.05,0.00015753,2]
[405873823,1771377048977,-1000.0,0.00015859,2]
[405873824,1771377048987,-1011.76198068,0.00015927,2]
[405873825,1771377048996,-5000.0,0.0001596,2]
[405873826,1771377049006,-1000.0,0.00015987,7]
[405873827,1771377049015,-173.57638878,0.00016,3]
[405873828,1771377049025,-276.734435,0.00016,2]
[405873829,1771377049035,-857.65528936,0.00016008,2]
[405873830,1771377049045,-1494.73225771,0.00016008,2]
[405873831,1771377049054,-481.75678797,0.00016036,2]
[405873832,1771377049064,-960.3517219,0.00016064,2]
[405873833,1771377049073,-2500.0,0.00016064,2]
[405873834,1771377049083,-1510.33829166,0.00016064,2]
[405873835,1771377049092,-1007.7222609,0.00016064,2]
[405873836,1771377049102,-2500.0,0.00016064,2]
[405873837,1771377049112,-277.35679052,0.00016077,2]
[405873838,1771377049122,-151.0,0.00016077,2]
[405873839,1771377049131,-500.0,0.00016077,2]
[405873840,1771377049141,-156.587,0.00016077,2]
[405873841,1771377049151,-500.0,0.00016077,2]
[405873842,1771377049160,-162.380719,0.00016077,2]
[405873843,1771377049170,-500.0,0.00016077,2]
[405873844,1771377049179,-159.19814613,0.00016077,2]
[405873845,1771377049189,-500.0,0.00016077,2]
[405873846,1771377049199,-500.0,0.00016077,2]
[405873847,1771377049208,-500.0,0.00016077,2]
[405873848,1771377049218,-500.0,0.00016077,2]
[405873849,1771377049227,-500.0,0.00016077,2]
[405873850,1771377049236,-500.0,0.00016077,2]
[405873851,1771377049246,-500.0,0.00016077,2]
[405873852,1771377049256,-500.0,0.00016077,2]
[405873853,1771377049266,-500.0,0.00016077,2]
[405873854,1771377049276,-500.0,0.00016077,2]
[405873855,1771377049285,-500.0,0.00016077,2]
[405873856,1771377049295,-500.0,0.00016077,2]
[405873857,1771377049305,-500.0,0.00016077,2]
[405873858,1771377049315,-500.0,0.00016077,2]
[405873859,1771377049324,-500.0,0.00016077,2]
[405873860,1771377049334,-500.0,0.00016077,2]
[405873861,1771377049344,-500.0,0.00016077,2]
[405873862,1771377049354,-2000.0,0.00016082,2]
[405873863,1771377049363,-161.0,0.000161,2]
[405873864,1771377049375,-9999.99,0.00016116,2]
[405873865,1771377049385,-1000.0,0.00016147,2]
[405873866,1771377049395,-166.11141928,0.00016185,2]
[405873867,1771377049405,-150.0,0.000162,2]
[405873868,1771377049415,-150.0,0.00016222,2]
[405873869,1771377049425,-1000.0,0.00016252,2]
[405873870,1771377049434,-1000.0,0.00016264,2]
[405873871,1771377049443,-1000.0,0.000163,2]
[405873872,1771377049453,-1000.0,0.00016331,2]
[405873873,1771377049463,-500.0,0.00016356,2]
[405873874,1771377049474,-500.0,0.00016356,2]
[405873875,1771377049484,-404.497183,0.00016356,7]
[405873876,1771377049494,-1103.0,0.00016388,2]
[405873877,1771377049504,-2835.0,0.000164,2]
[405873878,1771377049514,-2000.0,0.000164,2]
[405873879,1771377049524,-2789.9,0.00016438,2]
[405873880,1771377049534,-887.51,0.00016438,2]
[405873881,1771377049543,-1982.0,0.00016438,2]
[405873882,1771377049553,-841.0,0.00016438,2]
[405873883,1771377049563,-151.02975848,0.00016438,2]
[405873884,1771377049572,-4559.05,0.00016438,2]
[405873885,1771377049582,-276.993442,0.00016438,2]
[405873886,1771377049592,-276.993442,0.00016438,2]
[405873887,1771377049602,-276.993442,0.00016438,2]
[405873888,1771377049612,-276.993442,0.00016438,2]
[405873889,1771377049621,-1982.0,0.00016493,2]
[405873890,1771377049630,-150.0,0.000165,2]
[405873891,1771377049640,-3576.92029958,0.00016544,2]
[405873892,1771377049649,-1982.0,0.00016548,2]
[405873893,1771377049659,-1000.0,0.00016602,2]
[405873894,1771377049669,-1982.0,0.00016602,2]
[405873895,1771377049679,-1035.74923491,0.00016612,2]
[405873896,1771377049688,-3000.0,0.00016612,2]
[405873897,1771377049698,-287.61899177,0.00016625,2]
[405873898,1771377049708,-741.0,0.00016654,2]
[405873899,1771377049718,-1982.0,0.00016657,2]
[405873900,1771377049727,-1000.0,0.00016684,2]
[405873901,1771377049737,-741.0,0.00016691,2]
[405873902,1771377049747,-1000.0,0.00016707,2]
[405873903,1771377049757,-1982.0,0.00016712,2]
[405873904,1771377049767,-841.0,0.00016712,2]
[405873905,1771377049776,-1000.0,0.00016719,2]
[405873906,1771377049786,-842.0,0.0001672,2]
[405873907,1771377049795,-160.0,0.0001672,2]
[405873908,1771377049805,-842.0,0.0001672,2]
[405873909,1771377049814,-1000.0,0.0001673,2]
[405873910,1771377049824,-1982.0,0.00016767,2]
[405873911,1771377049838,-1000.0,0.00016768,2]
[405873912,1771377049847,-1000.0,0.0001678,2]
[405873913,1771377049857,-15296.93137855,0.0001679,2]
[405873914,1771377049867,-150.0,0.000168,2]
[405873915,1771377049879,-1000.0,0.00016801,2]
[405873916,1771377049888,-283.0,0.0001682,2]
[405873917,1771377049898,-1982.0,0.00016822,2]
[405873918,1771377049908,-1003.50041412,0.00016833,2]
[405873919,1771377049917,-1000.0,0.00016844,2]
[405873920,1771377049926,-619.543,0.00016869,2]
[405873921,1771377049936,-1164.0,0.00016869,2]
[405873922,1771377049946,-1338.0,0.00016869,2]
[405873923,1771377049956,-3540.659,0.00016869,2]
[405873924,1771377049965,-150.248,0.00016869,2]
[405873925,1771377049975,-1220.627,0.00016869,2]
[405873926,1771377049984,-2452.0,0.00016869,2]
[405873927,1771377049993,-5973.0,0.00016869,2]
[405873928,1771377050003,-1982.0,0.00016876,2]
[405873929,1771377050012,-1000.0,0.00016903,2]
[405873930,1771377050023,-186.35,0.00016915,2]
[405873931,1771377050032,-851.03293945,0.00016918,2]
[405873932,1771377050042,-1982.0,0.00016931,2]
[405873933,1771377050052,-1000.0,0.00016945,2]
[405873934,1771377050062,-152.0,0.00016963,3]
[405873935,1771377050072,-1000.0,0.00016963,2]
[405873936,1771377050081,-1000.0,0.00016974,2]
[405873937,1771377050091,-300.0,0.00016979,2]
[405873938,1771377050105,-1982.0,0.00016986,2]
[405873939,1771377050117,-841.0,0.00016986,2]
[405873940,1771377050126,-308.44634638,0.00016999,2]
[405873941,1771377050135,-300.0,0.00017,2]
[405873942,1771377050145,-186.35,0.0001701,2]
[405873943,1771377050154,-2835.0,0.0001704,2]
[405873944,1771377050164,-1982.0,0.00017041,2]
[405873945,1771377050175,-741.0,0.00017067,2]
[405873946,1771377050184,-1048.0,0.00017068,2]
[405873947,1771377050193,-741.0,0.00017071,2]
[405873948,1771377050203,-150.0,0.00017089,2]
[405873949,1771377050212,-1982.0,0.00017096,2]
[405873950,1771377050226,-1751.06105486,0.00017096,2]
[405873951,1771377050235,-151.0,0.00017097,2]
[405873952,1771377050245,-150.0,0.000171,2]
[405873953,1771377050254,-196837.22809,0.000171,2]
[405873954,1771377050263,-820.0,0.000171,2]
[405873955,1771377050273,-151.0,0.000171,2]
[405873956,1771377050282,-151.0,0.000171,2]
[405873957,1771377050292,-151.0,0.000171,2]
[405873958,1771377050301,-151.0,0.000171,2]
[405873959,1771377050311,-151.0,0.000171,2]
[405873960,1771377050320,-158.396759,0.000171,2]
[405873961,1771377050330,-151.0,0.000171,2]
[405873962,1771377050339,-151.0,0.000171,2]
[405873963,1771377050349,-242.009051,0.000171,2]
[405873964,1771377050359,-242.009051,0.000171,2]
[405873965,1771377050368,-242.009051,0.000171,2]
[405873966,1771377050379,-242.009051,0.000171,2]
[405873967,1771377050389,-1048.0,0.00017101,2]
[405873968,1771377050399,-1000.0,0.00017102,2]
[405873969,1771377050408,-186.35,0.00017105,2]
[405873970,1771377050418,-1048.0,0.00017138,2]
[405873971,1771377050427,-350.0,0.0001714,2]
[405873972,1771377050437,-1982.0,0.0001715,2]
[405873973,1771377050446,-150.0,0.00017152,2]
[405873974,1771377050456,-1740.67806815,0.0001716,2]
[405873975,1771377050465,-1048.0,0.00017171,2]
[405873976,1771377050475,-298.26089446,0.00017173,2]
[405873977,1771377050484,-1000.0,0.00017174,2]
[405873978,1771377050495,-1751.06105486,0.00017178,2]
[405873979,1771377050504,-150.0,0.00017183,2]
[405873980,1771377050514,-169.22,0.00017187,2]
[405873981,1771377050523,-1000.0,0.00017189,2]
[405873982,1771377050533,-741.0,0.00017194,2]
[405873983,1771377050543,-1000.0,0.00017198,2]
[405873984,1771377050552,-2000.0,0.000172,2]
[405873985,1771377050563,-1982.0,0.00017205,2]
[405873986,1771377050572,-152.0,0.00017207,4]
[405873987,1771377050581,-1048.0,0.00017232,2]
[405873988,1771377050592,-1751.06105486,0.00017233,2]
[405873989,1771377050602,-1982.0,0.0001726,2]
[405873990,1771377050612,-841.0,0.0001726,2]
[405873991,1771377050622,-1000.0,0.0001726,2]
[405873992,1771377050631,-996.49958588,0.00017272,2]
[405873993,1771377050641,-169.21125356,0.00017274,2]
[405873994,1771377050651,-150.0,0.00017275,2]
[405873995,1771377050660,-1048.0,0.0001729,2]
[405873996,1771377050669,-1000.0,0.00017291,2]
[405873997,1771377050678,-150.0,0.00017304,2]
[405873998,1771377050687,-1982.0,0.00017315,2]
[405873999,1771377050698,-1751.06105486,0.00017315,2]
[405874000,1771377050707,-2832.0,0.00017316,2]
[405874001,1771377050717,-190.0,0.0001736,2]
[405874002,1771377050726,-160.0,0.0001736,2]
[405874003,1771377050735,-3354.94878458,0.00017361,2]
[405874004,1771377050744,-1000.0,0.00017368,2]
[405874005,1771377050754,-1982.0,0.0001737,2]
[405874006,1771377050764,-1751.06105486,0.0001737,2]
[405874007,1771377050773,-150.0,0.00017379,2]
[405874008,1771377050782,-150.0,0.00017386,2]
[405874009,1771377050791,-150.0,0.000174,2]
[405874010,1771377050801,-1000.0,0.00017422,2]
[405874011,1771377050811,-1982.0,0.00017424,2]
[405874012,1771377050821,-1000.0,0.0001743,2]
[405874013,1771377050833,-152.0,0.00017451,5]
[405874014,1771377050843,-1000.0,0.00017451,2]
[405874015,1771377050852,-151.0,0.00017452,2]
[405874016,1771377050861,-2000.0,0.00017452,7]
[405874017,1771377050872,-1751.06105486,0.00017452,2]
[405874018,1771377050882,-1000.0,0.00017455,2]
[405874019,1771377050891,-1982.0,0.00017479,2]
[405874020,1771377050899,-150.0,0.00017487,2]
[405874021,1771377050910,-1751.06105486,0.00017507,2]
[405874022,1771377050920,-1000.0,0.00017517,2]
[405874023,1771377050929,-1048.0,0.00017521,2]
[405874024,1771377050938,-1000.0,0.00017524,2]
[405874025,1771377050949,-1982.0,0.00017534,2]
[405874026,1771377050962,-841.0,0.00017534,2]
[405874027,1771377050971,-1000.0,0.00017534,2]
[405874028,1771377050981,-1000.0,0.00017536,2]
[405874029,1771377050990,-1000.0,0.0001754,2]
[405874030,1771377051000,-150.0,0.00017574,2]
[405874031,1771377051010,-1982.0,0.00017589,2]
[405874032,1771377051020,-1000.0,0.00017589,2]
[405874033,1771377051226,-1751.06105486,0.00017589,2]
[405874034,1771377051235,-2835.0,0.00017591,2]
[405874035,1771377051244,-2000.0,0.000176,2]
[405874036,1771377051254,-1600.0,0.000176,6]
[405874037,1771377051263,-300.0,0.00017639,2]
[405874038,1771377051272,-10846.14923654,0.0001764,2]
[405874039,1771377051281,-1982.0,0.00017643,2]
[405874040,1771377051290,-1751.06105486,0.00017644,2]
[405874041,1771377051301,-1000.0,0.00017646,2]
[405874042,1771377051319,-1000.0,0.00017649,2]
[405874043,1771377051329,-150.0,0.00017662,2]
[405874044,1771377051340,-150.0,0.00017668,2]
[405874045,1771377051350,-1000.0,0.00017669,2]
[405874046,1771377051359,-1000.0,0.00017674,2]
[405874047,1771377051369,-150.0,0.00017688,2]
[405874048,1771377051379,-1000.0,0.00017689,2]
[405874049,1771377051389,-1000.0,0.00017692,2]
[405874050,1771377051398,-152.0,0.00017695,6]
[405874051,1771377051407,-1986.56309185,0.00017698,2]
[405874052,1771377051417,-150.0,0.000177,2]
[405874053,1771377051427,-1600.0,0.000177,6]
[405874054,1771377051436,-309.29654756,0.00017721,2]
[405874055,1771377051446,-1000.0,0.00017722,2]
[405874056,1771377051455,-1000.0,0.00017723,2]
[405874057,1771377051464,-500.0,0.00017726,7]
[405874058,1771377051474,-1751.06105486,0.00017726,2]
[405874059,1771377051483,-1000.0,0.0001773,2]
[405874060,1771377051492,-2004.41635969,0.0001773,2]
[405874061,1771377051502,-150.0,0.00017739,2]
[405874062,1771377051511,-1000.0,0.00017752,2]
[405874063,1771377051521,-1000.0,0.00017756,2]
[405874064,1771377051531,-1000.0,0.00017762,2]
[405874065,1771377051540,-1751.06105486,0.00017781,2]
[405874066,1771377051549,-1600.0,0.000178,6]
[405874067,1771377051559,-312.69655239,0.00017807,2]
[405874068,1771377051568,-444.64,0.00017808,2]
[405874069,1771377051577,-841.0,0.00017808,2]
[405874070,1771377051587,-800.0,0.00017808,2]
[405874071,1771377051596,-1000.0,0.00017808,2]
[405874072,1771377051605,-250.0,0.00017808,20]
[405874073,1771377051614,-250.0,0.00017808,20]
[405874074,1771377051625,-250.0,0.00017808,20]
[405874075,1771377051634,-250.0,0.00017808,20]
[405874076,1771377051643,-250.0,0.00017808,20]
[405874077,1771377051654,-250.0,0.00017808,20]
[405874078,1771377051663,-311.844149,0.00017808,2]
[405874079,1771377051672,-250.0,0.00017808,20]
[405874080,1771377051682,-175.581622,0.00017808,20]
[405874081,1771377051691,-311.844149,0.00017808,2]
[405874082,1771377051700,-311.844149,0.00017808,2]
[405874083,1771377051709,-311.844149,0.00017808,2]
[405874084,1771377051719,-1000.0,0.0001782,2]
[405874085,1771377051728,-2000.0,0.0001782,2]
[405874086,1771377051738,-2000.0,0.0001782,2]
[405874087,1771377051747,-1000.0,0.00017842,2]
[405874088,1771377051757,-1000.0,0.00017847,2]
[405874089,1771377051767,-200.0,0.00017855,2]
[405874090,1771377051776,-1048.0,0.00017855,2]
[405874091,1771377051785,-500.0,0.00017856,2]
[405874092,1771377051795,-200.0,0.00017856,2]
[405874093,1771377051804,-200.0,0.00017856,2]
[405874094,1771377051813,-1000.0,0.00017863,2]
[405874095,1771377051822,-1000.0,0.00017863,2]
[405874096,1771377051833,-1000.0,0.00017863,2]
[405874097,1771377051844,-1751.06105486,0.00017863,2]
[405874098,1771377051853,-1000.0,0.00017864,2]
[405874099,1771377051863,-300.0,0.0001788,2]
[405874100,1771377051875,-666.0,0.0001788,2]
[405874101,1771377051884,-1048.0,0.00017886,2]
[405874102,1771377051893,-150.0,0.00017888,2]
[405874103,1771377051904,-1048.0,0.00017893,2]
[405874104,1771377051913,-300.0,0.00017898,2]
[405874105,1771377051922,-431.2849758,0.00017899,3]
[405874106,1771377051931,-151.0,0.00017899,3]
[405874107,1771377051941,-151.0,0.00017899,3]
[405874108,1771377051950,-151.0,0.00017899,3]
[405874109,1771377051960,-151.0,0.00017899,3]
[405874110,1771377051969,-151.0,0.00017899,3]
[405874111,1771377051978,-151.0,0.00017899,3]
[405874112,1771377051987,-200.0,0.00017899,3]
[405874113,1771377051996,-200.0,0.00017899,3]
[405874114,1771377052006,-151.0,0.00017899,3]
[405874115,1771377052015,-174.61919141,0.00017899,3]
[405874116,1771377052024,-181.08010149,0.00017899,3]
[405874117,1771377052032,-187.78006525,0.00017899,3]
[405874118,1771377052041,-151.0,0.00017899,3]
[405874119,1771377052050,-194.72792766,0.00017899,3]
[405874120,1771377052060,-151.0,0.00017899,3]
[405874121,1771377052068,-201.93286099,0.00017899,3]
[405874122,1771377052077,-151.0,0.00017899,3]
[405874123,1771377052086,-209.40437684,0.00017899,3]
[405874124,1771377052095,-500.0,0.00017899,3]
[405874125,1771377052105,-151.0,0.00017899,3]
[405874126,1771377052114,-217.15233878,0.00017899,3]
[405874127,1771377052123,-500.0,0.00017899,3]
[405874128,1771377052132,-225.18697532,0.00017899,3]
[405874129,1771377052141,-500.0,0.00017899,3]
[405874130,1771377052151,-721.12765535,0.00017899,3]
[405874131,1771377052161,-233.51889341,0.00017899,3]
[405874132,1771377052169,-500.0,0.00017899,3]
[405874133,1771377052178,-500.0,0.00017899,3]
[405874134,1771377052187,-747.8093786,0.00017899,3]
[405874135,1771377052197,-242.15909246,0.00017899,3]
[405874136,1771377052206,-500.0,0.00017899,3]
[405874137,1771377052216,-500.0,0.00017899,3]
[405874138,1771377052225,-775.47832561,0.00017899,3]
[405874139,1771377052235,-251.11897888,0.00017899,3]
[405874140,1771377052244,-500.0,0.00017899,3]
[405874141,1771377052253,-500.0,0.00017899,3]
[405874142,1771377052263,-804.17102365,0.00017899,3]
[405874143,1771377052271,-260.4103811,0.00017899,3]
[405874144,1771377052280,-500.0,0.00017899,3]
[405874145,1771377052289,-500.0,0.00017899,3]
[405874146,1771377052298,-833.92535153,0.00017899,3]
[405874147,1771377052307,-270.0455652,0.00017899,3]
[405874148,1771377052316,-500.0,0.00017899,3]
[405874149,1771377052326,-864.78058953,0.00017899,3]
[405874150,1771377052335,-500.0,0.00017899,3]
[405874151,1771377052344,-280.03725112,0.00017899,3]
[405874152,1771377052354,-500.0,0.00017899,3]
[405874153,1771377052363,-896.77747135,0.00017899,3]
[405874154,1771377052372,-500.0,0.00017899,3]
[405874155,1771377052382,-290.39862941,0.00017899,3]
[405874156,1771377052391,-500.0,0.00017899,3]
[405874157,1771377052400,-500.0,0.00017899,3]
[405874158,1771377052409,-929.95823779,0.00017899,3]
[405874159,1771377052418,-301.1433787,0.00017899,3]
[405874160,1771377052428,-500.0,0.00017899,3]
[405874161,1771377052437,-500.0,0.00017899,3]
[405874162,1771377052446,-964.36669259,0.00017899,3]
[405874163,1771377052455,-500.0,0.00017899,3]
[405874164,1771377052465,-1000.04826021,0.00017899,3]
[405874165,1771377052474,-500.0,0.00017899,3]
[405874166,1771377052483,-1037.05004584,0.00017899,3]
[405874167,1771377052494,-500.0,0.00017899,3]
[405874168,1771377052503,-250.0,0.00017899,3]
[405874169,1771377052513,-250.0,0.00017899,3]
[405874170,1771377052522,-250.0,0.00017899,3]
[405874171,1771377052531,-250.0,0.00017899,3]
[405874172,1771377052541,-250.0,0.00017899,3]
[405874173,1771377052550,-250.0,0.00017899,3]
[405874174,1771377052560,-250.0,0.00017899,3]
[405874175,1771377052569,-250.0,0.00017899,3]
[405874176,1771377052578,-250.0,0.00017899,3]
[405874177,1771377052588,-250.0,0.00017899,3]
[405874178,1771377052597,-250.0,0.00017899,3]
[405874179,1771377052606,-250.0,0.00017899,3]
[405874180,1771377052615,-250.0,0.00017899,3]
[405874181,1771377052624,-250.0,0.00017899,3]
[405874182,1771377052633,-250.0,0.00017899,3]
[405874183,1771377052642,-250.0,0.00017899,3]
[405874184,1771377052651,-250.0,0.00017899,3]
[405874185,1771377052661,-250.0,0.00017899,3]
[405874186,1771377052670,-250.0,0.00017899,3]
[405874187,1771377052679,-250.0,0.00017899,3]
[405874188,1771377052688,-250.0,0.00017899,3]
[405874189,1771377052697,-250.0,0.00017899,3]
[405874190,1771377052706,-250.0,0.00017899,3]
[405874191,1771377052716,-250.0,0.00017899,3]
[405874192,1771377052725,-250.0,0.00017899,3]
[405874193,1771377052734,-250.0,0.00017899,3]
[405874194,1771377052744,-250.0,0.00017899,3]
[405874195,1771377052753,-250.0,0.00017899,3]
[405874196,1771377052762,-250.0,0.00017899,3]
[405874197,1771377052771,-250.0,0.00017899,3]
[405874198,1771377052780,-250.0,0.00017899,3]
[405874199,1771377052789,-250.0,0.00017899,3]
[405874200,1771377052799,-693.3919763,0.00017899,3]
[405874201,1771377052809,-250.0,0.00017899,3]
[405874202,1771377052818,-250.0,0.00017899,3]
[405874203,1771377052828,-250.0,0.00017899,3]
[405874204,1771377052841,-719.04747942,0.00017899,3]
[405874205,1771377052850,-250.0,0.00017899,3]
[405874206,1771377052859,-250.0,0.00017899,3]
[405874207,1771377052869,-745.65223616,0.00017899,3]
[405874208,1771377052879,-250.0,0.00017899,3]
[405874209,1771377052888,-250.0,0.00017899,3]
[405874210,1771377052897,-250.0,0.00017899,3]
[405874211,1771377052908,-773.2413689,0.00017899,3]
[405874212,1771377052917,-250.0,0.00017899,3]
[405874213,1771377052926,-250.0,0.00017899,3]
[405874214,1771377052935,-250.0,0.00017899,3]
[405874215,1771377052944,-801.85129955,0.00017899,3]
[405874216,1771377052953,-250.0,0.00017899,3]
[405874217,1771377052962,-250.0,0.00017899,3]
[405874218,1771377052971,-250.0,0.00017899,3]
[405874219,1771377052980,-831.51979763,0.00017899,3]
[405874220,1771377052989,-250.0,0.00017899,3]
[405874221,1771377052997,-299.40346672,0.00017899,3]
[405874222,1771377053007,-862.28603014,0.00017899,3]
[405874223,1771377053016,-250.0,0.00017899,3]
[405874224,1771377053025,-894.19061326,0.00017899,3]
[405874225,1771377053034,-250.0,0.00017899,3]
[405874226,1771377053044,-927.27566595,0.00017899,3]
[405874227,1771377053053,-250.0,0.00017899,3]
[405874228,1771377053063,-961.58486559,0.00017899,3]
[405874229,1771377053071,-250.0,0.00017899,3]
[405874230,1771377053080,-997.16350561,0.00017899,3]
[405874231,1771377053090,-151.0,0.00017899,3]
[405874232,1771377053099,-250.0,0.00017899,3]
[405874233,1771377053108,-250.0,0.00017899,3]
[405874234,1771377053117,-151.0,0.00017899,3]
[405874235,1771377053127,-250.0,0.00017899,3]
[405874236,1771377053136,-151.0,0.00017899,3]
[405874237,1771377053145,-151.0,0.00017899,3]
[405874238,1771377053155,-151.0,0.00017899,3]
[405874239,1771377053165,-151.0,0.00017899,3]
[405874240,1771377053174,-500.0,0.00017899,3]
[405874241,1771377053183,-151.0,0.00017899,3]
[405874242,1771377053191,-500.0,0.00017899,3]
[405874243,1771377053200,-743.50770149,0.00017899,3]
[405874244,1771377053209,-151.0,0.00017899,3]
[405874245,1771377053218,-500.0,0.00017899,3]
[405874246,1771377053227,-771.01748645,0.00017899,3]
[405874247,1771377053236,-151.0,0.00017899,3]
[405874248,1771377053245,-500.0,0.00017899,3]
[405874249,1771377053255,-799.54513345,0.00017899,3]
[405874250,1771377053264,-151.0,0.00017899,3]
[405874251,1771377053273,-151.0,0.00017899,3]
[405874252,1771377053283,-829.12830338,0.00017899,3]
[405874253,1771377053292,-151.0,0.00017899,3]
[405874254,1771377053301,-171.52852621,0.00017899,3]
[405874255,1771377053310,-151.0,0.00017899,3]
[405874256,1771377053319,-151.0,0.00017899,3]
[405874257,1771377053329,-218.04759767,0.00017899,3]
[405874258,1771377053338,-151.0,0.00017899,3]
[405874259,1771377053348,-174.5920753,0.00017899,3]
[405874260,1771377053357,-3000.0,0.00017899,3]
[405874261,1771377053367,-151.0,0.00017899,3]
[405874262,1771377053376,-151.0,0.00017899,3]
[405874263,1771377053386,-3000.0,0.00017899,3]
[405874264,1771377053396,-3000.0,0.00017899,3]
[405874265,1771377053406,-151.0,0.00017899,3]
[405874266,1771377053415,-3000.0,0.00017899,3]
[405874267,1771377053425,-151.0,0.00017899,3]
[405874268,1771377053435,-200.0,0.00017899,3]
[405874269,1771377053446,-3000.0,0.00017899,3]
[405874270,1771377053456,-151.0,0.00017899,3]
[405874271,1771377053466,-200.0,0.00017899,3]
[405874272,1771377053476,-151.0,0.00017899,3]
[405874273,1771377053486,-3000.0,0.00017899,3]
[405874274,1771377053495,-200.0,0.00017899,3]
[405874275,1771377053505,-151.0,0.00017899,3]
[405874276,1771377053514,-3000.0,0.00017899,3]
[405874277,1771377053524,-200.0,0.00017899,3]
[405874278,1771377053534,-200.0,0.00017899,3]
[405874279,1771377053544,-2570.81608438,0.00017899,3]
[405874280,1771377053555,-151.0,0.00017899,3]
[405874281,1771377053566,-200.0,0.00017899,3]
[405874282,1771377053576,-151.0,0.00017899,3]
[405874283,1771377053586,-200.0,0.00017899,3]
[405874284,1771377053596,-151.0,0.00017899,3]
[405874285,1771377053606,-184.99591854,0.00017899,3]
[405874286,1771377053616,-151.0,0.00017899,3]
[405874287,1771377053628,-300.0,0.00017899,2]
[405874288,1771377053637,-150.0,0.000179,2]
[405874289,1771377053647,-150.0,0.000179,2]
[405874290,1771377053656,-161.0,0.000179,3]
[405874291,1771377053666,-951.6545,0.000179,2]
[405874292,1771377053676,-161.0,0.000179,2]
[405874293,1771377053685,-150.0,0.000179,2]
[405874294,1771377053694,-4587.476,0.000179,2]
[405874295,1771377053704,-150.0,0.000179,2]
[405874296,1771377053713,-25000.0,0.000179,3]
[405874297,1771377053722,-173.57638878,0.000179,3]
[405874298,1771377053732,-150.0,0.000179,2]
[405874299,1771377053741,-150.0,0.000179,2]
[405874300,1771377053751,-150.0,0.000179,2]
[405874301,1771377053760,-159.75009324,0.000179,2]
[405874302,1771377053770,-150.0,0.000179,2]
[405874303,1771377053780,-1983.0,0.000179,6]
[405874304,1771377053790,-33727.00783268,0.000179,2]
[405874305,1771377053798,-3576.92029958,0.000179,2]
[405874306,1771377053808,-2162.4795237,0.000179,2]
[405874307,1771377053817,-150.0,0.000179,2]
[405874308,1771377053828,-20103.63193877,0.000179,2]
[405874309,1771377053839,-1048.0,0.00017909,2]
[405874310,1771377053848,-150.0,0.00017911,2]
[405874311,1771377053857,-152.0,0.00017939,7]
[405874312,1771377053866,-408.1558858,0.00017939,7]
[405874313,1771377053879,-1000.0,0.0001794,2]
[405874314,1771377053889,-1000.0,0.00017946,2]
[405874315,1771377053899,-1000.0,0.00017965,2]
[405874316,1771377053909,-1000.0,0.00017967,2]
[405874317,1771377053919,-403.54428131,0.0001797,2]